bitfinex/quotes_ETHUSD_20260202
["timestamp","ask_amount","ask_price","bid_price","bid_amount"]
[1770044345125,0.91833031,2335.2,2333.7,0.001]
[1770044345326,0.91833031,2335.1,2333.7,0.001]
[1770044345626,12.31086669,2335.4,2333.7,0.001]
[1770044345847,13.228307,2335.3,2333.7,0.001]
[1770044346033,2.24027101,2335.2,2333.7,0.001]
[1770044346231,1.3228307,2335.2,2333.7,0.001]
[1770044346551,12.31086669,2335.3,2333.7,0.001]
[1770044346750,0.91703326,2335.2,2333.7,0.001]
[1770044346954,13.22789995,2335.2,2333.7,0.001]
[1770044347156,1.15083932,2335.7,2334.3,12.05032528]
[1770044347322,1.15083932,2335.7,2334.4,2.15735783]
[1770044347323,0.26690043,2335.7,2334.4,2.15735783]
[1770044347520,12.31086669,2336.0,2334.4,2.15735783]
[1770044347725,12.31086669,2335.6,2334.0,1.0710882]
[1770044347951,12.31086669,2335.4,2333.8,1.07117392]
[1770044348155,12.31086669,2335.2,2333.7,0.001]
[1770044348327,12.31086669,2335.2,2333.9,1.07113604]
[1770044348529,1.23108667,2335.1,2333.7,0.001]
[1770044348855,13.46170601,2335.6,2333.9,1.07113782]
[1770044349072,12.31086669,2335.4,2333.9,1.07113782]
[1770044349357,13.22757716,2335.3,2333.9,1.07113782]
[1770044349559,13.63362441,2335.2,2333.7,0.001]
[1770044349724,12.31086669,2335.2,2333.7,0.001]
[1770044350126,0.9167032,2335.1,2333.7,0.001]
[1770044350346,12.31086669,2335.1,2333.7,0.001]
[1770044350748,0.91642052,2335.0,2333.7,0.001]
[1770044350956,1.32272872,2335.0,2333.7,0.001]
[1770044352270,1.32272872,2335.0,2333.7,12.05132528]
[1770044352429,12.31086669,2335.8,2333.7,12.05132528]
[1770044352637,13.2266137,2335.7,2333.7,12.05132528]
[1770044352939,13.2266137,2335.6,2333.7,12.05132528]
[1770044353259,0.91590405,2335.5,2333.7,12.05132528]
[1770044353452,12.31086669,2335.6,2333.8,1.20513253]
[1770044353453,1.32267707,2335.4,2333.8,1.20513253]
[1770044353826,12.31086669,2335.4,2333.8,1.20513253]
[1770044354032,12.31086669,2335.4,2333.7,0.001]
[1770044354033,12.31086669,2335.2,2333.7,1.07223087]
[1770044354238,13.22685851,2335.1,2333.7,0.001]
[1770044354467,12.31086669,2335.1,2333.7,1.07225705]
[1770044354759,0.91608018,2335.0,2333.7,0.001]
[1770044354958,1.32269469,2334.9,2333.8,1.07120987]
[1770044355163,1.32269469,2334.9,2333.7,1.60797965]
[1770044356355,1.32269469,2334.9,2332.2,0.22257761]
[1770044356356,12.31086669,2334.7,2332.2,0.22257761]
[1770044356556,30.0,2334.8,2332.3,12.05032528]
[1770044356557,1.15083932,2333.9,2332.3,12.05032528]
[1770044356757,1.15083932,2333.9,2331.8,9.52325303]
[1770044356758,1.15083932,2333.6,2331.9,1.07205357]
[1770044356969,0.91610934,2333.5,2332.0,1.31223788]
[1770044357177,0.91610934,2333.5,2332.0,13.36256316]
[1770044357337,1.15083932,2334.3,2332.8,0.001]
[1770044357656,1.15083932,2334.3,2331.9,10.59529535]
[1770044357657,12.31086669,2333.8,2331.9,1.07208671]
[1770044357859,1.15083932,2333.4,2331.7,13.12247189]
[1770044358163,0.91537248,2333.3,2331.8,1.31224719]
[1770044358367,1.15083932,2333.9,2331.8,13.36257247]
[1770044358666,15.51910969,2333.7,2331.8,13.36257247]
[1770044358843,4.65657,2333.5,2331.8,13.36257247]
[1770044359165,1.89651265,2333.4,2331.9,1.4434747]
[1770044359334,1.89651265,2333.4,2331.1,4.28972385]
[1770044359335,21.83411972,2332.4,2330.5,12.27303237]
[1770044359538,12.31086669,2332.1,2330.5,0.22270709]
[1770044359754,7.046799,2331.9,2330.0,16.34203992]
[1770044359955,2.23659932,2331.8,2330.1,2.70711931]
[1770044360169,1.32269469,2331.8,2330.1,1.63420399]
[1770044360382,1.32269469,2331.8,2329.3,0.09020693]
[1770044360383,11.77629189,2331.3,2329.3,0.09020693]
[1770044360680,12.92713121,2331.5,2329.8,1.07302206]
[1770044360884,12.92713121,2331.5,2329.3,11.805214]
[1770044360885,1.24974605,2331.4,2330.0,1.07295792]
[1770044361029,1.15083932,2331.9,2329.7,11.71500707]
[1770044361030,5.774,2331.8,2329.7,11.71500707]
[1770044361234,11.77629189,2331.9,2330.0,1.07294714]
[1770044361850,5.8388,2332.0,2329.9,11.71500707]
[1770044362063,4.7088,2332.0,2329.9,11.71500707]
[1770044362262,0.51259844,2331.9,2330.0,1.60072111]
[1770044363364,12.28889033,2331.9,2330.0,1.60072111]
[1770044363745,0.51259844,2331.9,2330.1,1.07291532]
[1770044363954,0.41718436,2332.1,2330.4,11.71500707]
[1770044364285,3.912254,2332.0,2330.2,11.71500707]
[1770044364574,2.02836,2332.0,2330.2,11.71500707]
[1770044364883,9.155865,2331.7,2330.0,1.60072111]
[1770044365035,2.09321569,2331.6,2330.0,1.0729588]
[1770044365637,0.41718436,2332.1,2330.0,12.78796587]
[1770044365868,7.197699,2332.0,2330.0,12.78796587]
[1770044366052,18.74612289,2332.0,2330.0,12.78796587]
[1770044366291,5.16715,2331.9,2330.0,12.78795434]
[1770044366771,5.16715,2331.9,2329.3,4.38316523]
[1770044366772,11.77629189,2331.3,2329.5,1.07315496]
[1770044366955,6.260767,2331.2,2329.5,1.07318913]
[1770044367160,11.77629189,2331.1,2329.0,0.1127465]
[1770044367380,11.77629189,2331.1,2329.1,11.71500707]
[1770044367381,0.0008024,2330.2,2329.1,11.71500707]
[1770044367534,1.15083932,2331.4,2329.0,0.0008028]
[1770044367535,11.77629189,2330.9,2329.0,0.0008028]
[1770044367735,0.2335703,2330.7,2329.0,11.71580987]
[1770044367967,12.00986219,2330.7,2328.2,11.7158123]
[1770044368181,0.1024,2330.8,2328.2,11.7158123]
[1770044368182,21.29954492,2330.8,2328.6,11.71500707]
[1770044368343,4.7252,2330.7,2328.8,4.2940546]
[1770044368545,0.0008028,2330.2,2329.0,12.7884263]
[1770044368946,0.0008028,2330.2,2329.0,11.71500707]
[1770044369475,0.0008028,2330.2,2329.0,12.78841459]
[1770044369685,0.0008028,2330.2,2328.6,4.29432317]
[1770044369686,1.57661744,2328.5,2325.2,8.80960647]
[1770044369974,1.57661744,2328.5,2324.4,0.20215103]
[1770044369975,0.22443,2329.0,2324.4,0.20215103]
[1770044369976,3.630798,2329.8,2329.0,2.94390481]
[1770044370278,3.630798,2329.8,2329.0,2.19245489]
[1770044370448,3.630798,2329.8,2328.4,11.71500707]
[1770044370650,3.630798,2329.8,2328.8,11.71500707]
[1770044370883,9.52325303,2331.5,2328.8,11.71500707]
[1770044371180,3.01540514,2331.5,2329.6,11.71500707]
[1770044371501,3.01540514,2331.5,2329.0,0.0008032]
[1770044371502,21.29954492,2331.2,2329.0,11.71581027]
[1770044371644,11.77629189,2330.1,2329.0,0.0008032]
[1770044371962,9.52325303,2330.2,2328.2,0.00080564]
[1770044371963,0.0008032,2330.2,2328.2,0.00080564]
[1770044372170,0.0008032,2330.2,2328.7,11.71500707]
[1770044372340,3.3386,2330.1,2328.8,13.83883308]
[1770044372540,3.3386,2330.1,2328.2,11.71581271]
[1770044372541,3.1236,2330.1,2328.2,11.71581271]
[1770044372884,0.0008032,2330.2,2328.2,0.00080564]
[1770044373066,2.93715,2330.1,2328.2,0.00080564]
[1770044373256,3.702416,2329.9,2328.2,0.00080564]
[1770044373641,11.77629189,2330.0,2328.2,0.00080564]
[1770044373873,1.17762919,2329.9,2328.2,0.00080564]
[1770044374177,0.0008032,2330.2,2328.2,0.00080564]
[1770044374343,2.2327,2330.1,2328.2,0.00080564]
[1770044374542,0.0008032,2330.2,2328.2,11.71581271]
[1770044374746,0.0008032,2330.2,2328.3,11.71500707]
[1770044374973,0.0008032,2330.2,2328.7,11.71500707]
[1770044375353,0.0008032,2330.2,2329.1,11.71500707]
[1770044375838,0.0008032,2330.2,2329.2,1.07332989]
[1770044376041,0.3437988,2331.3,2329.3,11.71500707]
[1770044376362,0.3437988,2331.3,2329.1,4.29331959]
[1770044376363,2.13322,2331.1,2329.1,1.07334386]
[1770044376870,11.77629189,2331.2,2329.1,1.07334386]
[1770044377093,2.96367,2331.1,2329.0,0.0008036]
[1770044377390,17.43104689,2330.8,2329.0,0.0008036]
[1770044377691,1.74310469,2330.7,2329.1,1.07337507]
[1770044377982,2.328905,2330.6,2329.0,0.0008036]
[1770044378392,1.74310469,2330.7,2329.0,0.0008036]
[1770044379574,27.73839189,2331.2,2329.0,0.0008036]
[1770044379752,16.073093,2331.1,2329.0,0.0008036]
[1770044379957,10.49344751,2331.7,2329.0,0.0008036]
[1770044379958,1.15083932,2332.5,2330.4,11.71500707]
[1770044380140,1.15083932,2332.5,2330.2,9.34260819]
[1770044380141,1.15083932,2334.0,2332.4,0.01712109]
[1770044380341,1.51228165,2334.2,2332.0,11.71500707]
[1770044380342,2.497223,2334.2,2332.0,11.71500707]
[1770044380575,11.77629189,2334.6,2332.1,11.73212816]
[1770044380778,12.92713121,2335.1,2332.1,11.71500707]
[1770044380954,12.92713121,2335.1,2331.6,0.01712109]
[1770044380955,9.34260819,2335.3,2332.5,11.71500707]
[1770044381157,9.34260819,2335.3,2332.2,0.1024]
[1770044381158,2.18396,2335.1,2332.7,11.71500707]
[1770044381378,0.38345732,2335.4,2333.1,11.71500707]
[1770044381579,19.26412789,2335.6,2333.3,11.71500707]
[1770044381783,29.560249,2335.4,2332.8,11.71500707]
[1770044381946,11.77629189,2335.1,2332.8,11.71500707]
[1770044382279,12.521962,2334.6,2332.2,11.71500707]
[1770044382583,9.040746,2334.6,2332.2,11.71500707]
[1770044382879,11.77629189,2334.7,2332.3,1.07187056]
[1770044383052,12.92713121,2335.3,2332.4,11.81740707]
[1770044383376,2.193341,2335.1,2332.5,13.00564694]
[1770044383680,2.193341,2335.1,2332.6,11.73212816]
[1770044383851,2.22807394,2335.2,2332.6,11.73212816]
[1770044384055,8.315749,2334.9,2332.6,11.71500707]
[1770044384247,1.6822014,2334.8,2332.7,1.30056469]
[1770044384448,0.77487226,2334.8,2332.7,1.30056469]
[1770044385351,0.77487226,2334.8,2332.0,11.71500707]
[1770044385352,2.963734,2334.2,2332.0,11.71500707]
[1770044386575,5.476576,2334.0,2332.0,11.71500707]
[1770044386750,30.0,2334.2,2332.0,11.71500707]
[1770044387154,5.26848,2334.0,2332.0,11.71500707]
[1770044387349,0.526848,2333.9,2332.1,1.17150071]
[1770044387553,11.77629189,2334.1,2331.5,0.1024]
[1770044387863,31.15083932,2334.2,2331.0,12.44164578]
[1770044387864,5.501728,2333.5,2331.0,12.44164578]
[1770044388060,10.312901,2333.1,2331.0,12.44164578]
[1770044388262,10.065153,2333.1,2331.0,12.44164578]
[1770044388457,12.41974414,2333.2,2331.0,12.44164578]
[1770044388458,7.989068,2332.9,2331.1,1.24416458]
[1770044388880,6.859068,2332.9,2331.1,1.24416458]
[1770044390761,6.653151,2332.9,2331.1,1.24416458]
[1770044391562,6.114882,2332.9,2331.1,1.24416458]
[1770044392361,2.22697394,2333.0,2331.1,14.15340518]
[1770044392686,24.06080334,2333.3,2331.2,1.41534052]
[1770044392866,10.217332,2333.2,2330.6,12.9092406]
[1770044393259,9.052857,2333.2,2330.6,12.9092406]
[1770044393453,7.185008,2333.2,2330.8,12.9092406]
[1770044393670,4.186135,2333.2,2330.8,12.9092406]
[1770044393882,4.29004,2333.0,2330.9,14.20016466]
[1770044394076,2.39404,2333.0,2330.9,14.20016466]
[1770044395476,1.59518283,2333.1,2331.4,0.01712109]
[1770044395683,11.76569334,2333.7,2331.0,12.9092406]
[1770044395987,3.481,2333.4,2331.0,12.9092406]
[1770044396156,2.781,2333.4,2331.0,12.9092406]
[1770044396357,2.043759,2333.4,2331.2,12.9092406]
[1770044396654,13.14663857,2333.3,2331.3,14.20187677]
[1770044396857,2.252804,2333.0,2331.3,1.29263617]
[1770044397083,5.867085,2332.9,2330.7,12.9092406]
[1770044397388,1.38094523,2333.3,2330.9,12.9092406]
[1770044397568,15.58549734,2333.1,2330.9,12.9092406]
[1770044397768,2.98204,2332.9,2331.0,1.29092406]
[1770044398487,1.55854973,2333.0,2331.0,1.29092406]
[1770044398488,1.55854973,2333.0,2331.0,14.20016466]
[1770044398796,3.032432,2332.9,2331.0,14.20016466]
[1770044399161,1.55854973,2333.0,2331.0,14.20016466]
[1770044399386,3.969115,2332.9,2331.0,14.20016466]
[1770044399592,0.55276647,2332.8,2331.1,14.34637816]
[1770044399759,5.621159,2333.1,2331.1,14.32925707]
[1770044399954,2.465104,2332.9,2331.1,1.42001647]
[1770044400169,11.76569334,2333.0,2330.8,12.9092406]
[1770044400369,11.76569334,2332.6,2329.9,13.99932894]
[1770044400690,3.986816,2332.8,2330.4,12.9092406]
[1770044401018,11.76569334,2332.9,2330.7,13.98186758]
[1770044401320,11.76569334,2332.9,2330.6,0.01712109]
[1770044401321,0.0011,2333.2,2331.0,12.9092406]
[1770044401503,2.27375496,2333.8,2331.0,12.9092406]
[1770044401504,1.51693664,2335.8,2332.9,12.9092406]
[1770044401692,1.51693664,2335.8,2333.8,0.01712109]
[1770044401693,0.0011,2335.8,2333.8,0.01712109]
[1770044401891,0.0011,2335.8,2332.3,4.28750608]
[1770044401892,11.76569334,2334.6,2332.0,13.54877506]
[1770044402092,11.76569334,2334.4,2332.0,0.63953446]
[1770044402292,8.615332,2334.5,2331.1,1.29092406]
[1770044402293,13.28152998,2333.4,2331.1,1.29092406]
[1770044402506,13.28152998,2333.4,2329.7,2.27472485]
[1770044402507,11.76569334,2332.6,2329.8,12.9092406]
[1770044402803,11.76569334,2332.6,2329.6,9.31894218]
[1770044402804,1.29092406,2331.1,2329.6,9.31894218]
[1770044402982,11.76569334,2332.1,2329.4,12.9092406]
[1770044403177,11.76569334,2332.1,2329.2,0.001]
[1770044403178,0.91169934,2332.0,2330.2,12.9092406]
[1770044403380,1.51583664,2333.2,2330.7,12.9092406]
[1770044403597,3.0458065,2334.1,2331.8,12.9092406]
[1770044403768,19.689161,2334.5,2332.1,22.22818278]
[1770044403977,2.27375496,2334.8,2332.1,22.22818278]
[1770044403978,1.51583664,2335.1,2332.7,22.22818278]
[1770044404219,14.0394483,2335.3,2331.4,12.9092406]
[1770044404220,1.51583664,2334.5,2331.4,12.9092406]
[1770044404403,1.51583664,2334.5,2331.3,0.1024]
[1770044404404,4.069176,2334.3,2331.6,12.9092406]
[1770044404724,4.069176,2334.3,2331.7,0.01712109]
[1770044404725,11.76569334,2334.0,2331.7,0.01712109]
[1770044404927,2.42772037,2334.2,2331.1,12.9092406]
[1770044404928,18.167832,2333.7,2331.1,12.9092406]
[1770044405076,11.76569334,2333.5,2331.1,12.9092406]
[1770044405280,6.712237,2333.3,2331.2,1.29092406]
[1770044405500,0.91188373,2333.2,2331.2,1.29092406]
[1770044405707,0.91188373,2333.1,2331.4,12.9092406]
[1770044405909,0.91188373,2333.1,2331.3,10.39130523]
[1770044405910,13.28152998,2334.6,2332.2,12.9092406]
[1770044406211,13.28152998,2333.8,2331.5,1.02500212]
[1770044406424,2.27375496,2334.0,2331.2,1.29092406]
[1770044406425,3.02816,2333.3,2331.2,1.29092406]
[1770044406586,3.02816,2333.3,2330.6,9.31894218]
[1770044406587,1.51583664,2333.1,2330.5,12.9092406]
[1770044406916,3.0145,2333.0,2330.5,12.9092406]
[1770044407222,3.91679,2332.8,2330.6,1.29092406]
[1770044407505,0.91383728,2332.7,2330.6,1.29092406]
[1770044407809,0.91383728,2332.6,2330.6,1.29092406]
[1770044408006,0.91383728,2332.5,2330.6,1.29092406]
[1770044408303,0.91383728,2332.4,2330.6,1.29092406]
[1770044408509,0.91383728,2332.3,2330.7,1.42001647]
[1770044408825,0.91383728,2332.3,2330.1,2.09791487]
[1770044408826,5.39296964,2332.1,2329.4,9.31894218]
[1770044408986,1.51583664,2332.6,2330.7,12.9092406]
[1770044409188,11.76569334,2333.5,2330.0,9.42134218]
[1770044409189,1.51583664,2332.9,2330.9,12.9092406]
[1770044409390,11.76569334,2334.1,2330.8,1.0725931]
[1770044409391,1.53275164,2333.5,2331.5,12.9092406]
[1770044409724,5.25735102,2334.7,2331.0,1.50058337]
[1770044409725,12.65324371,2333.1,2331.0,1.39818337]
[1770044409890,1.53260571,2332.6,2330.9,12.9092406]
[1770044410095,0.91950733,2332.5,2330.9,12.9092406]
[1770044410283,0.91950733,2332.4,2330.9,12.9092406]
[1770044410489,1.16471863,2332.3,2331.0,1.29092406]
[1770044410685,0.91950733,2332.2,2331.0,1.29092406]
[1770044410885,1.53260571,2332.7,2330.6,12.9092406]
[1770044411085,0.91971858,2332.6,2330.6,13.98191115]
[1770044411397,0.91971858,2332.5,2330.6,12.9092406]
[1770044411591,0.91971858,2332.4,2330.6,12.9092406]
[1770044411793,0.91971858,2332.3,2330.7,1.39819405]
[1770044411992,0.91971858,2332.2,2330.8,0.001]
[1770044412204,0.91971858,2332.1,2330.8,0.001]
[1770044412518,1.53260571,2332.7,2330.8,0.001]
[1770044412685,2.45329928,2332.6,2330.8,0.001]
[1770044412887,1.53260571,2332.1,2330.8,0.001]
[1770044413118,1.53260571,2331.8,2330.8,0.001]
[1770044413319,1.30132964,2331.7,2330.8,0.001]
[1770044413620,0.92069357,2331.6,2330.8,0.001]
[1770044413816,0.92069357,2331.5,2330.8,0.001]
[1770044414026,2.681406,2331.3,2329.7,9.31894218]
[1770044414183,0.92069357,2331.2,2329.7,9.31894218]
[1770044414388,0.92069357,2331.1,2329.4,12.9092406]
[1770044414588,0.92069357,2331.0,2329.4,12.9092406]
[1770044414789,0.92069357,2330.9,2329.5,1.29092406]
[1770044415099,2.27375496,2331.5,2329.5,1.29092406]
[1770044415100,0.92159121,2330.8,2329.5,1.29092406]
[1770044415295,1.53260571,2331.3,2329.5,1.29092406]
[1770044415524,1.53260571,2331.1,2329.5,1.29092406]
[1770044415827,1.53260571,2330.7,2329.0,0.0008036]
[1770044416004,2.27375496,2330.8,2329.0,0.0008036]
[1770044416005,1.53260571,2330.4,2329.0,0.0008036]
[1770044416372,0.92152788,2330.3,2329.0,0.0008036]
[1770044416512,0.92152788,2330.2,2329.0,0.0008036]
[1770044416692,0.24541336,2330.2,2329.0,0.0008036]
[1770044416893,5.59350671,2330.0,2329.0,0.0008036]
[1770044417127,10.40444671,2329.6,2328.2,0.00380564]
[1770044417329,10.40444671,2329.6,2327.5,12.91004706]
[1770044417330,1.53260571,2329.1,2327.5,0.00080646]
[1770044417503,3.249725,2328.9,2327.5,0.00080646]
[1770044417697,1.53341135,2329.4,2327.7,9.31894218]
[1770044417897,1.53341135,2329.4,2327.5,0.00080646]
[1770044417898,0.9185571,2329.3,2327.5,1.07492006]
[1770044418115,0.9185571,2329.2,2327.5,12.91004706]
[1770044418319,0.00080564,2329.4,2327.6,2.19000471]
[1770044418515,1.53041135,2329.8,2327.6,0.899]
[1770044418726,0.91654886,2329.7,2328.2,0.00080605]
[1770044419035,2.27375496,2331.0,2328.6,12.9092406]
[1770044419325,3.0458065,2331.3,2328.5,9.33606327]
[1770044419326,14.0394483,2331.5,2328.8,12.9092406]
[1770044419523,2.27375496,2331.4,2328.9,0.899]
[1770044419712,2.27375496,2331.3,2329.0,1.38082406]
[1770044419916,9.31894218,2332.1,2328.2,0.01792714]
[1770044419917,5.371588,2330.1,2328.2,0.00080605]
[1770044420095,2.3506,2329.9,2328.2,0.00080605]
[1770044420295,12.87379807,2330.4,2328.2,0.00080605]
[1770044420296,0.91575566,2329.8,2328.2,0.00080605]
[1770044420499,4.494405,2330.0,2328.2,0.00080605]
[1770044420732,1.36429488,2329.9,2328.2,0.00080605]
[1770044420931,5.577241,2330.1,2328.2,0.00080605]
[1770044421236,0.91490192,2330.0,2328.2,0.00080605]
[1770044421395,0.91490192,2329.9,2328.2,0.00080605]
[1770044421599,12.87460167,2330.2,2328.2,0.00080605]
[1770044421823,0.91380364,2330.1,2328.2,0.00080605]
[1770044422128,0.91380364,2330.0,2328.2,12.57737129]
[1770044422309,6.737989,2330.1,2328.2,0.00080605]
[1770044422509,0.91309647,2330.0,2328.2,0.00080605]
[1770044422716,0.0008036,2330.2,2328.2,0.00080605]
[1770044422935,3.851499,2330.1,2328.2,0.00080605]
[1770044423110,16.82111207,2329.9,2328.2,0.93278087]
[1770044423307,0.0008036,2330.2,2328.2,0.00080605]
[1770044423308,12.87379807,2329.6,2328.2,0.00080605]
[1770044423508,11.173591,2329.4,2328.2,0.00080605]
[1770044423708,4.442319,2329.2,2327.9,0.9]
[1770044423938,3.508319,2329.2,2327.9,0.9]
[1770044424145,7.30007,2329.0,2327.9,0.9]
[1770044424342,7.30007,2329.0,2327.5,0.00080646]
[1770044424343,11.059481,2328.6,2327.5,0.00080646]
[1770044424542,3.17375496,2329.2,2327.5,0.00080646]
[1770044424543,12.87379807,2329.2,2327.5,0.00080646]
[1770044424751,17.83645,2328.5,2326.0,9.31894218]
[1770044424908,4.714701,2328.5,2326.5,0.9]
[1770044425113,4.714701,2328.5,2326.2,12.57656524]
[1770044425313,2.358358,2328.3,2326.3,0.9]
[1770044426717,7.394186,2328.2,2326.3,0.9]
[1770044427050,12.87379807,2327.1,2324.4,0.20215103]
[1770044427344,1.47345239,2327.0,2325.6,12.59368633]
[1770044427511,1.47345239,2327.0,2325.7,23.17199714]
[1770044427714,1.47345239,2327.0,2325.8,13.49368633]
[1770044427914,4.270372,2327.9,2325.8,0.9]
[1770044428146,2.442947,2327.9,2325.8,0.9]
[1770044428320,6.625985,2327.7,2325.8,0.9]
[1770044428522,0.79140003,2327.6,2325.8,0.9]
[1770044428726,1.28801528,2327.8,2325.8,0.9]
[1770044428932,12.87379807,2327.4,2322.4,12.57656524]
[1770044429116,0.90581654,2327.3,2324.6,12.57656524]
[1770044429470,1.25961125,2327.2,2325.8,12.57656524]
[1770044429753,1.25961125,2327.2,2324.8,12.57656524]
[1770044429917,1.25961125,2327.2,2323.7,2.12227478]
[1770044429918,1.25961125,2327.2,2324.9,14.76611598]
[1770044430122,2.633667,2327.1,2324.9,14.76611598]
[1770044430326,0.1024,2326.8,2323.9,12.57656524]
[1770044430574,0.1024,2326.8,2324.1,12.57656524]
[1770044430753,18.511091,2326.7,2324.1,12.57656524]
[1770044430953,0.22277939,2327.1,2324.5,12.57656524]
[1770044430954,3.122033,2327.0,2324.5,12.57656524]
[1770044431156,0.22277939,2327.1,2324.5,12.57656524]
[1770044431157,3.887418,2327.1,2324.5,12.57656524]
[1770044431458,0.1024,2327.5,2324.6,0.771489]
[1770044431459,0.1024,2326.6,2324.6,0.771489]
[1770044431672,30.0,2326.7,2323.1,12.57656524]
[1770044431673,12.97619807,2326.1,2323.1,12.57656524]
[1770044431958,24.243658,2325.8,2323.2,13.47756524]
[1770044432261,12.87379807,2326.1,2323.5,13.65251353]
[1770044432262,4.84515,2325.6,2323.5,13.65251353]
[1770044432485,1.13442939,2325.5,2324.2,1.07563892]
[1770044432770,1.13442939,2325.5,2324.2,0.901]
[1770044433246,1.13442939,2325.5,2324.3,0.901]
[1770044433632,1.13442939,2325.5,2324.3,14.55315789]
[1770044433845,2.2644373,2328.2,2325.1,12.57656524]
[1770044433846,0.60178067,2326.9,2325.1,12.57656524]
[1770044434049,0.60178067,2326.9,2325.4,12.57656524]
[1770044434456,0.60178067,2326.9,2325.5,13.47756524]
[1770044434631,22.19274025,2328.9,2325.6,13.49468633]
[1770044434962,0.37884453,2327.9,2326.0,13.66849286]
[1770044435125,0.37884453,2327.9,2326.2,12.59368633]
[1770044435324,9.31894218,2328.9,2326.2,12.59368633]
[1770044435325,0.22282709,2329.1,2327.4,12.57656524]
[1770044435531,0.44148825,2329.3,2327.4,12.57656524]
[1770044435532,0.44148825,2329.3,2327.6,0.01712109]
[1770044435759,0.44148825,2329.3,2327.6,1.34946863]
[1770044435966,0.44148825,2329.3,2327.6,13.92603387]
[1770044436361,0.44148825,2329.3,2327.7,12.59368633]
[1770044436644,0.0011,2330.0,2327.7,12.59368633]
[1770044436645,0.0011,2330.0,2328.4,12.57656524]
[1770044436846,0.0011,2330.0,2328.5,0.901]
[1770044437049,0.0011,2330.0,2328.6,2.4213611]
[1770044437257,0.0011,2330.0,2328.6,1.34775652]
[1770044437457,6.570265,2329.9,2328.5,0.901]
[1770044437760,6.570265,2329.9,2328.2,0.00080646]
[1770044437761,0.1024,2329.8,2328.2,0.00080646]
[1770044437926,5.716492,2329.5,2328.2,0.00080646]
[1770044438123,4.32056,2329.3,2328.2,0.00080646]
[1770044438357,0.1024,2328.9,2326.8,0.00080564]
[1770044438557,0.00080687,2328.7,2326.8,1.97623693]
[1770044438759,0.00080687,2328.7,2327.2,1.07424514]
[1770044438946,0.00080687,2328.7,2326.9,12.57656524]
[1770044439144,0.00080687,2328.7,2326.8,0.90180564]
[1770044439145,0.00080687,2328.7,2326.8,13.47837088]
[1770044439352,0.00080687,2328.7,2326.9,13.92440233]
[1770044439537,0.00080687,2328.7,2326.9,1.34783709]
[1770044439861,0.00080687,2328.7,2326.8,12.57737088]
[1770044440046,0.00080687,2328.7,2326.9,0.901]
[1770044440259,0.00080687,2328.7,2326.8,0.00080564]
[1770044440571,0.00080687,2328.7,2327.0,1.07434464]
[1770044440725,0.00080687,2328.7,2327.1,12.57656524]
[1770044441058,0.00080687,2328.7,2327.2,1.36509099]
[1770044441428,0.00080687,2328.7,2326.8,0.00080564]
[1770044441670,12.489009,2328.6,2326.8,0.00080564]
[1770044441833,12.87460494,2328.7,2326.8,0.00080564]
[1770044442039,12.87460494,2328.7,2325.7,13.92603387]
[1770044442040,0.1024,2327.5,2325.7,1.34946863]
[1770044442264,17.17735807,2327.7,2325.1,0.901]
[1770044442265,0.90758412,2327.4,2325.1,0.901]
[1770044442465,7.287398,2327.9,2325.3,12.57656524]
[1770044442767,13.20976837,2327.6,2325.1,0.901]
[1770044442930,0.1024,2327.2,2325.1,0.901]
[1770044443135,2.20279,2327.1,2325.1,0.901]
[1770044443337,0.1024,2327.3,2325.2,1.07517632]
[1770044443556,4.272763,2327.2,2325.2,1.07517632]
[1770044443865,2.46367,2327.2,2325.2,1.07517632]
[1770044444034,0.256607,2327.1,2325.3,0.62768816]
[1770044444230,3.638083,2327.0,2325.4,0.901]
[1770044444775,0.91095935,2326.9,2324.2,0.01712109]
[1770044444933,0.91095935,2326.9,2323.9,17.10409901]
[1770044444934,3.877443,2326.7,2324.4,0.901]
[1770044445150,2.5210443,2327.1,2324.4,14.55307115]
[1770044445151,2.726379,2326.5,2324.4,14.55307115]
[1770044445349,0.48908024,2326.6,2324.4,14.55307115]
[1770044445548,6.835713,2326.8,2324.4,14.55307115]
[1770044445960,24.048431,2327.3,2324.4,14.55307115]
[1770044446287,11.442379,2327.1,2324.4,14.55307115]
[1770044446578,7.093278,2326.9,2324.4,14.55307115]
[1770044446769,3.866952,2327.1,2324.4,14.55307115]
[1770044446976,0.00080564,2328.0,2325.7,1.07494517]
[1770044447147,3.0333174,2327.9,2325.8,0.901]
[1770044447352,0.00080564,2328.0,2325.8,0.901]
[1770044447353,2.678916,2327.7,2325.8,0.901]
[1770044447547,0.00080564,2328.0,2325.8,13.47756524]
[1770044447784,4.198484,2327.9,2325.8,13.47756524]
[1770044447981,1.33188882,2327.8,2325.9,1.45525104]
[1770044448183,0.00080564,2328.0,2325.8,12.77162574]
[1770044448388,0.00080564,2328.0,2326.0,11.88774683]
[1770044448845,0.00080564,2328.0,2326.3,11.88774683]
[1770044449050,0.00080564,2328.0,2326.6,11.88774683]
[1770044449247,0.00080687,2328.7,2327.3,0.01712109]
[1770044449482,0.00080687,2328.7,2326.8,11.87143179]
[1770044449681,0.00080687,2328.7,2327.0,0.01712109]
[1770044449885,0.00080687,2328.7,2327.1,12.15490864]
[1770044450050,0.00080687,2328.7,2326.8,0.00080605]
[1770044450551,0.00080687,2328.7,2326.8,0.01792714]
[1770044450979,0.00080687,2328.7,2326.9,1.07439082]
[1770044451305,0.00080687,2328.7,2327.0,0.53898812]
[1770044451449,0.00080687,2328.7,2324.8,12.15490864]
[1770044451450,2.243721,2327.9,2324.8,12.15490864]
[1770044451650,0.01712109,2327.3,2325.2,12.16019988]
[1770044451872,2.37077,2327.6,2325.9,4.29938784]
[1770044452079,0.9141608,2327.5,2326.4,1.07461128]
[1770044452279,0.01712109,2327.7,2326.3,1.07462994]
[1770044452482,0.91482471,2327.6,2326.0,0.901]
[1770044452645,0.91482471,2327.5,2326.0,0.901]
[1770044452850,0.91482471,2327.4,2326.3,1.07466563]
[1770044453051,3.367984,2327.7,2326.0,0.901]
[1770044453346,3.748823,2327.5,2326.0,1.97579456]
[1770044453550,0.91486857,2327.4,2326.0,1.97579747]
[1770044453747,5.405356,2327.2,2326.0,0.901]
[1770044454052,0.91486857,2327.1,2326.0,0.901]
[1770044454254,0.91486857,2327.0,2326.0,0.901]
[1770044454465,0.91186857,2326.9,2326.0,0.901]
[1770044454674,8.720296,2327.2,2326.0,0.901]
[1770044454884,7.123296,2327.2,2326.2,0.001]
[1770044455184,6.858296,2327.2,2326.2,0.001]
[1770044455384,0.8756435,2327.1,2326.2,0.001]
[1770044455583,1.51972297,2327.6,2326.2,0.001]
[1770044455787,3.024461,2327.5,2326.2,0.001]